Cogmind - Beta 16 @@@ ROGUE MODE // 2025.11.21 @ 19:32:08 Player: sweetandcool Result: Destroyed by as-74877 with Assembled Blade Performance ------------- Evolutions (0) 0 Regions Visited (3) 600 Robots Destroyed (23) 115 Value Destroyed (419) 419 Prototype IDs (40) 800 Alien Tech Used (0) 0 Bonus (90) 90 TOTAL SCORE: 2024 Bonus ------- Aligned with FarCom 300 Friendly Fire -210 Cogmind --------- Core Integrity 0/250 Matter 252/300 Energy 100/100 System Corruption 0% Temperature Cool (11) Movement Core (350) Ox6 Location -10/Exiles Parts ------- > --- POWER (1) -------- (None) > --- PROPULSION (2) --- (None) > --- UTILITY (2) ------ Large Storage Unit > --- WEAPON (2) ------- (None) > --- INVENTORY (15) --- Light Ion Engine Medium Storage Unit Huge Storage Unit EM Shotgun AWS/Thermal YOLO Cannon Assault Rifle Grenade Launcher Datajack Longsword +1 Peak State ------------ > --- POWER ------------ Ion Engine > --- PROPULSION ------- Light Treads Light Treads > --- UTILITY ---------- Large Storage Unit Light Armor Plating > --- WEAPON ----------- Improved Light Cannon Longsword +1 > --- INVENTORY -------- Light Ion Engine Medium Storage Unit Huge Storage Unit EM Shotgun AWS/Thermal YOLO Cannon Assault Rifle Grenade Launcher Grenade Launcher Datajack [Rating: 19] Favorites ----------- Power Ion Engine Engine Ion Engine Propulsion Light Treads Treads Light Treads Flight Unit Improved Flight Unit Utility Large Storage Unit Storage Large Storage Unit Protection Light Armor Plating Weapon Light Assault Rifle Energy Gun EM Shotgun Ballistic Gun Light Assault Rifle Ballistic Cannon Improved Light Cannon Launcher Grenade Launcher Slashing Weapon Longsword +1 Special Melee Weapon Datajack Build | -11 -10 -10 -10 ------- Run | Yrd Mat Min Exi Slots Evolved . | . . . . Power . | . . . . Propulsion . | . . . . Utility . | . . . . Weapon . | . . . . Parts Attached 19 | 7 7 . 5 Power 1 | 1 . . . Engine 1 | 1 . . . Core . | . . . . Reactor . | . . . . Propulsion 3 | 2 1 . . Treads 2 | 2 . . . Leg . | . . . . Wheel . | . . . . Hover . | . . . . Flight 1 | . 1 . . Utility 7 | 2 4 . 1 Device . | . . . . Storage 6 | 2 4 . . Processor . | . . . . Hackware . | . . . . Protection 1 | . . . 1 Artifact . | . . . . Weapon 8 | 2 2 . 4 Energy Gun 2 | 1 1 . . Energy Cannon . | . . . . Ballistic Gun 1 | 1 . . . Ballistic Cannon 1 | . . . 1 Launcher 2 | . 1 . 1 Special Weapon . | . . . . Impact Weapon . | . . . . Slashing Weapon 1 | . . . 1 Piercing Weapon . | . . . . Special Melee Weapon 1 | . . . 1 Unidentified Prototypes 1 | . 1 . . Parts Lost 6 | . . . 6 Power 1 | . . . 1 Propulsion 2 | . . . 2 Utility 1 | . . . 1 Weapon 2 | . . . 2 Highest Loss Streak 6 | . . . 6 To Critical Strikes 2 | . . . 2 Average Backups 11 | . 10 14 12 Power . | . 1 1 1 Propulsion 2 | . 2 3 1 Utility 3 | . 3 5 3 Weapon 3 | . 2 4 5 Tool/Special . | . . . . Unused Backups 9 | . 1 . 8 Power 1 | . . . 1 Propulsion 2 | . . . 2 Utility 2 | . . . 2 Weapon 4 | . 1 . 3 Tool/Special . | . . . . Average Slot Usage (%) 99 | . 99 100 97 Engine 13 | . 13 14 13 Treads 27 | . 27 28 26 Storage 26 | . 28 28 23 Protection 1 | . . . 4 Energy Gun 7 | . 14 . . Ballistic Gun 9 | . 14 14 1 Launcher 6 | . . 14 13 Slashing Weapon 1 | . . . 4 Special Melee Weapon 2 | . . . 7 Peak Build Rating 19 | 7 11 9 19 Average Rating 9 | 4 8 9 11 On Entrance 6 | . 7 10 9 Avg Prop Armor Cover (%) . | . . . . Naked Turns . | . . . . Heaviest Build 39 | 18 39 39 39 Greatest Support 40 | 40 40 40 40 Greatest Overweight (x) 2 | 2 . . 1 Average Overweight (x) . | . . . . Largest Inventory Capacity 25 | 8 25 15 15 Average Capacity 13 | 7 12 15 15 Most Carried 15 | 1 15 15 15 Average Carried 11 | . 10 14 13 Final Capacity 15 | 8 15 15 15 Final Carried 14 | 1 14 14 12 Class Distribution -------------------- 100% | Mutant Dominant Class ---------------- Mutant | -10/Materials Mutant | -10/Mines Mutant | -10/Exiles Resources | -11 -10 -10 -10 ----------- Run | Yrd Mat Min Exi Matter Collected 500 | 273 189 38 . Remotely . | . . . . Salvage Created 728 | 91 565 54 18 Parts 39 | 2 36 1 . Haulers Intercepted 1 | . 1 . . Recyclers Shooed 2 | . 2 . . Parts Field Recycled . | . . . . Retrieved Matter . | . . . . Parts Self-Destructed . | . . . . Prevented . | . . . . Parts Restored . | . . . . Kills | -11 -10 -10 -10 ------- Run | Yrd Mat Min Exi Combat Hostiles Destroyed 18 | . 11 2 5 Guns 6 | . 5 1 . AOE 12 | . 6 1 5 Classes Destroyed 7 | 1 5 . 1 Worker 3 | . 3 . . Hauler 1 | . 1 . . Recycler 4 | 1 3 . . Watcher 2 | . 2 . . Swarmer 5 | . 5 . . Grunt 8 | . 6 2 . Assembled 5 | . . . 5 Best Kill Streak 11 | 1 11 2 5 Combat Bots Only 6 | . 6 2 5 Max Kills in Single Turn 4 | 1 4 1 3 Gunslinging . | . . . . Exploded 3 | . 3 1 3 Melee . | . . . . Uniques/NPCs Destroyed . | . . . . Combat | -11 -10 -10 -10 -------- Run | Yrd Mat Min Exi Hostile Shots Fired 97 | . 49 10 38 Missed 24 | . 14 2 8 Hits 73 | . 35 8 30 Melee 7 | . . . 7 Projectile 66 | . 35 8 23 Critical Strikes 9 | . . . 9 Damage Taken 1099 | . 335 150 614 Core 273 | . 50 23 200 Absorbed by Shields . | . . . . Core Remaining (%) 100 | 100 . . . Volleys Fired 47 | 3 33 9 2 Largest 2 | 2 2 1 2 Hottest 65 | 60 65 30 63 Shots Fired 82 | 6 63 9 4 Gun 73 | 6 60 7 . Cannon 2 | . . . 2 Launcher 7 | . 3 2 2 Special . | . . . . Kinetic 42 | 3 30 7 2 Thermal . | . . . . Explosive 7 | . 3 2 2 Electromagnetic 33 | 3 30 . . Robot Hit Streak 8 | 5 8 5 5 Robot Miss Streak 5 | 1 5 5 . Penetration Max . | . . . . Secondary Targets . | . . . . Shots Hit Robots 65 | 5 37 6 17 Core Hits 59 | 2 33 6 18 Critical Kills 1 | 1 . . . Critical Parts Destroyed . | . . . . Critical Strikes 2 | 1 . . 1 Destroy 1 | 1 . . . Sever 1 | . . . 1 Melee Attacks 13 | . . . 13 Impact . | . . . . Slashing 8 | . . . 8 Piercing . | . . . . Sneak Attacks 6 | . . . 6 Combat Hostiles . | . . . . Follow-up Attacks . | . . . . Damage Inflicted 2076 | 51 1084 160 781 Guns 515 | 51 417 47 . Cannons 41 | . . . 41 Explosions 1132 | . 667 113 352 Melee 388 | . . . 388 Ramming . | . . . . Kinetic 230 | 24 118 47 41 Thermal 328 | . 328 . . Explosive 804 | . 339 113 352 Electromagnetic 326 | 27 299 . . Impact . | . . . . Slashing 388 | . . . 388 Piercing . | . . . . Highest Corruption . | . . . . Average Corruption . | . . . . Corruption Purged . | . . . . Corruption Blocked . | . . . . Overload Shots . | . . . . Overflow Damage 28 | . 12 . 16 Projectiles . | . . . . Explosions 28 | . 12 . 16 Melee . | . . . . Knockbacks 3 | . . . 3 Impact . | . . . . Kinetic 2 | . . . 2 Secondary 1 | . . . 1 Self-Inflicted Damage 106 | . 9 35 62 Shots 5 | . 1 2 2 Rammed . | . . . . Targets Rammed . | . . . . Kicked . | . . . . Crushed . | . . . . Highest Temperature 100 | 20 100 10 23 Average Temperature 23 | 13 25 8 12 Received Heat Transfer 278 | . 72 66 140 Siege Activations . | . . . . Martial Activations . | . . . . Shielding Activations . | . . . . Robots Disrupted . | . . . . Combat Hostiles . | . . . . Robots Corrupted . | . . . . Combat Hostiles . | . . . . Parts Fried 1 | . 1 . . Impact Corruptions . | . . . . Robots Melted . | . . . . Combat Hostiles . | . . . . Parts Melted . | . . . . Heat Transferred 300 | . 300 . . Parts Sabotaged . | . . . . Parts Stolen . | . . . . Parts Stripped . | . . . . Power Chain Reactions 1 | . 1 . . Alert | -11 -10 -10 -10 ------- Run | Yrd Mat Min Exi Maximum Alert Level 1 | . 1 . . Low Security (%) 91 | 100 89 100 . Level 1 8 | . 10 . . Level 2 . | . . . . Level 3 . | . . . . Level 4 . | . . . . Level 5 . | . . . . High Security . | . . . . Max Security . | . . . . Peak Influence 234 | 5 234 57 . Initial . | . . . . Average 79 | . 98 14 . Influence Increases 444 | 5 382 57 . Destroy 0b10 Robot/C 260 | . 220 40 . Destroy 0b10 Robot/NC 55 | 5 50 . . Destroy Leader 56 | . 46 10 . Successful Hack 19 | . 19 . . Disable Machine 15 | . 15 . . Destroy Structure 39 | . 32 7 . Influence Decreases 444 | 5 382 57 . Time Decay 444 | 5 382 57 . Squads Dispatched 1 | . 1 . . Investigation . | . . . . Extermination . | . . . . Reinforcement 1 | . 1 . . Assault . | . . . . Garrison . | . . . . Intercept . | . . . . Searches Triggered . | . . . . Construction Impeded . | . . . . Haulers Reinforced . | . . . . Active Scanning Responses . | . . . . Cargo Convoy Interrupts . | . . . . Stealth | -11 -10 -10 -10 --------- Run | Yrd Mat Min Exi Distress Signals . | . . . . Communications Jammed . | . . . . Distress Signals . | . . . . Times Spotted 31 | . 21 2 8 Peak Tracking Total 9 | . 7 2 9 Tactical Retreats . | . . . . Traps | -11 -10 -10 -10 ------- Run | Yrd Mat Min Exi Traps Triggered 1 | . 1 . . Indirectly . | . . . . Trap Hack Attempts . | . . . . Triggered . | . . . . Disarmed . | . . . . Reprogrammed . | . . . . Reused . | . . . . Traps Extracted . | . . . . Installed . | . . . . Triggered . | . . . . Most Traps Carried 1 | . . 1 . Machines | -11 -10 -10 -10 ---------- Run | Yrd Mat Min Exi Machines Disabled 3 | . 2 . 1 Max in Single Turn 1 | . 1 . 1 Machines Repaired . | . . . . Machines Dismantled . | . . . . Machines Sabotaged . | . . . . Overloaded Fab Kills . | . . . . Hacking | -11 -10 -10 -10 --------- Run | Yrd Mat Min Exi Machines Accessed 6 | . 5 . 1 Terminals 5 | . 5 . . Fabricators . | . . . . Repair Stations . | . . . . Recycling Units . | . . . . Scanalyzers . | . . . . Garrison Access . | . . . . Total Hacks 14 | . 13 . 1 Successful 6 | . 5 . 1 Failed 8 | . 8 . . Catastrophic 2 | . 2 . . Database Lockouts . | . . . . Manual 17 | . 16 . 1 Terminals 13 | . 13 . . Fabricators . | . . . . Repair Stations . | . . . . Recycling Units . | . . . . Scanalyzers . | . . . . Garrison Access . | . . . . Terminal Hacks 6 | . 5 . 1 Part Schematic 2 | . 2 . . Robot Analysis 2 | . 2 . . Prototype ID Bank 1 | . 1 . . Proto ID Catalog 1 | . . . 1 Fabricator Hacks . | . . . . Repair Station Hacks . | . . . . Recycling Unit Hacks . | . . . . Scanalyzer . | . . . . Garrison Access Hacks . | . . . . Unauthorized Hacks . | . . . . Terminals . | . . . . Fabricators . | . . . . Repair Stations . | . . . . Recycling Units . | . . . . Scanalyzers . | . . . . Garrison Access . | . . . . Data Cores Recovered . | . . . . Used . | . . . . Hacking Detections 5 | . 5 . . Full Trace Events . | . . . . Feedback Events . | . . . . Feedback Blocked . | . . . . Robot Schematics Acquired . | . . . . Robots Built . | . . . . Authchips . | . . . . Time . | . . . . Total Robot Build Rating . | . . . . Part Schematics Acquired 2 | . 2 . . Parts Built . | . . . . Authchips . | . . . . Time . | . . . . Total Part Build Rating . | . . . . Part Studies Acquired . | . . . . Parts Repaired . | . . . . Time . | . . . . Parts Recycled . | . . . . Recycled Matter . | . . . . Retrieved Matter . | . . . . Retrieved Components . | . . . . Parts Scanalyzed . | . . . . Part Schematics Acquired . | . . . . Parts Damaged . | . . . . Bothacking | -11 -10 -10 -10 ------------ Run | Yrd Mat Min Exi Used RIF Installer . | . . . . Robots Hacked 5 | . . . 5 Non-combat 3 | . . . 3 Combat 2 | . . . 2 Robot Hacks Applied 5 | . . . 5 parse_system 5 | . . . 5 Relay Couplers Released . | . . . . Fabnet Peak Effective % . | . . . . Robots Rewired . | . . . . Allies Hacked . | . . . . Hacks Repelled . | . . . . Allies | -11 -10 -10 -10 -------- Run | Yrd Mat Min Exi Total Allies . | . . . . Largest Group . | . . . . Highest-Rated Group . | . . . . Highest-Rated Ally . | . . . . Total Orders . | . . . . Ally Attacks . | . . . . Total Damage . | . . . . Kills . | . . . . Allies Corrupted . | . . . . Allies Melted . | . . . . Intel | -11 -10 -10 -10 ------- Run | Yrd Mat Min Exi Active Infowar (turns) . | . . . . Robot Analysis Total 2 | . 2 . . Derelict Logs Recovered . | . . . . Drone Launches . | . . . . Drone Recoveries . | . . . . Exploration | -11 -10 -10 -10 ------------- Run | Yrd Mat Min Exi Turns Passed 2079 | 67 1048 217 747 Spaces Moved 1160 | 33 564 124 439 Core 7 | 7 . . . Treads 1153 | 26 564 124 439 Legs . | . . . . Wheels . | . . . . Hover . | . . . . Flight . | . . . . Fastest Speed 50 | 50 160 160 160 Average Speed 159 | 145 160 160 160 Slowest Speed 240 | 160 160 160 240 Overloaded Moves . | . . . . Propulsion Burnouts . | . . . . Robots Hopped . | . . . . Potential Cave-ins . | . . . . Cave-ins Triggered . | . . . . Exploration Rate (%) 46 | 4 96 23 61 Regions Visited 3 Branch Regions 2 Pre-discovered Areas . | . . . . Known Exits Taken . | . . . . Unknown Exits Taken 3 | 1 1 1 . Scrap Searched 1 | . . 1 . Spaces Dug . | . . . . Terrain Destroyed 53 | . 30 7 16 Melee . | . . . . Projectile . | . . . . AOE 53 | . 30 7 16 Terrain Rammed . | . . . . Walls Destroyed . | . . . . Machines Disabled . | . . . . Actions | -11 -10 -10 -10 --------- Run | Yrd Mat Min Exi Total 1297 | 43 650 135 469 Wait 24 | . 24 . . Move 1157 | 32 563 123 439 Hop . | . . . . Pick Up 17 | 1 12 1 3 Fast Attach 8 | 7 1 . . Attach 1 | . 1 . . Detach 1 | . 1 . . Swap 17 | . 11 1 5 Drop 12 | . 4 1 7 Fire 47 | 3 33 9 2 Melee 13 | . . . 13 Ram . | . . . . Kick . | . . . . Crush . | . . . . Escape Stasis . | . . . . Rewire . | . . . . Trap . | . . . . Miscellaneous . | . . . . Route ------- -11/Scrapyard -10/Materials (discovered 4 exits: [*Mat x3] / [*Min]) -10/Mines -10/Exiles History --------- Turn | Location | Event 24 | -11/Scrapyard | Discovered new exit (range 15) 68 | -11/Scrapyard | Entered Materials 293 | -10/Materials | Discovered new exit (range 8) 310 | -10/Materials | Build established: Mutant 500 | -10/Materials | Discovered new exit (range 8) 718 | -10/Materials | Discovered new exit (range 16) 823 | -10/Materials | Discovered new exit (range 16) 1116 | -10/Materials | Entered Mines 1183 | -10/Mines | Deemed a non-threat by the Exiles lab entrance 1183 | -10/Mines | Discovered new exit (range 5) 1223 | -10/Mines | Found a hidden stash of uninstalled traps 1262 | -10/Mines | Assembled infested the area 1333 | -10/Mines | Entered Exiles 1373 | -10/Exiles | Met 8R-AWN 1399 | -10/Exiles | Met EX-HEX 1485 | -10/Exiles | Met EX-BIN 1507 | -10/Exiles | Aligned with FarCom system 1509 | -10/Exiles | Given EX-Vault access code 1546 | -10/Exiles | Opened EX-Vault 1555 | -10/Exiles | Found Longsword +1 1588 | -10/Exiles | Warned to stay clear of 0b10 Research branches 1636 | -10/Exiles | Met EX-DEC 1936 | -10/Exiles | Found YOLO Cannon 1938 | -10/Exiles | Found AWS/Thermal 2055 | -10/Exiles | Attacked by the Exiles 2067 | -10/Exiles | Core integrity fell below 50% 2077 | -10/Exiles | Core integrity fell below 20% 2080 | -10/Exiles | Destroyed by as-74877 with Assembled Blade Last Messages --------------- 02074_ as-74877 knocked back. 02074_ Destroyed Asb. F-torch. 02074_ as-17281 destroyed. 02074_ as-89485 destroyed. 02074_ Machine disabled. 02076_ Penetrated by HV Slug. 02076_ HV Slug penetrates Earth. 02077_ 8R-AWN knocked back. 02077_ as-99346 destroyed. 02077_ as-87320 destroyed. 02077_ Imp. Light Cannon destroyed. 02077_ Destroyed Imp. Light Cannon. 02077_ Grenade Launcher destroyed. 02077_ Destroyed Grenade Launcher. 02077_ as-33717 destroyed. 02077_ Destroyed Asb. Hover Unit. 02078_ Penetrated by HV Slug. 02078_ HV Slug penetrates Earth. 02078_ Penetrated by HV Slug. 02078_ HV Slug penetrates Earth. Map ----- +----------------------------------------------------+ | ""#??????????????????????????????????????????????? | | ""#??????????????????????????????????????????????? | | ""#??????????????????????????????????????????????? | | ""#??????????????????????????????????????????????? | | ""#??????????????????????????????????????????????? | | ""#??????????????????????????????????????????????? | | ""#??????????????????????????????????????????????? | | ""#??????????????????????????????????????????????? | | ""#??????????????????????????????????????????????? | | ""#??????????????????????????????????????????????? | | """"?????????????????????????????????????????????? | | ""##?????????????????????????????????????????????? | | """??????????????????????????????????????????????? | | #??????????????????????????????????????????????? | | ""#??????????????????????????????????????????????? | | ###??????????????????????????????????????????????? | | ?????????????????????????????????????????????????? | | ?????????????????????????????????????????????????? | | ?????????????????????????????????????????????????? | | #########????????????????????????????????????????? | | """"""""##???????????????????????????????????????? | | """ """"##?????????????????##??????????????# ??? | | "" " #?????????????#### #?????????????# #? | | " """#????????###### # #?????????????? # | | " "#????????# a #?????????????# # | | " "##????#### !@ #?????????????## ? | | ""### %= #????????????## #?? | | """######## g = #????????????# #?? | | "#????## ! ###????????### #??? | | ##???# ########## #??? | | ##?## #""""## #???? | | ### * ##??? | | a ## * #??? | | #### ##?? | | ""#?#"""""#### ### | | #"""##?#######??#### * # | | ######??????????????##### | | ##???????????????????????### | | " ##??????????????????????????### | | """ ""#?????????????????????????????### | | ""#" "##??????????????????????????????#" | | """##"""""""##???????????????????????????????#### | | "???#########???????????????????????????????????# | | ????????????????????????????????????????????????## | | ?????????????????????????????????????????????????# | | ?????????????????????????????????????????????????? | | ?????????????????????????????????????????????????? | | ?????????????????????????????????????????????????? | | ?????????????????????????????????????????????????? | | ?????????????????????????????????????????????????? | +----------------------------------------------------+ Best States ------------- Heat Dissipation 25 Energy Generation 10 Energy Capacity 250 Matter Stores 300 Matter Capacity 300 Sight Range 16 Terrain Scan Density 10 Armor Coverage 150 Evasion (%) 40 Recoil Reduction 2 Item Schematics ----------------- Datajack | -10/Materials | Hacked Flight Unit | -10/Materials | Hacked Robot Schematics ------------------ None Fabricated ------------ Nothing Repaired ---------- Nothing Studied --------- None Alien Tech Used ----------------- None Achievements -------------- None Challenges ------------ None Game ------ Seed PotentialChipPlating Manual? 0 Play Time 00:23:58 Cumulative 124.8 hours Start 2025.11.21 @ 19:10:33 End 2025.11.21 @ 19:32:08 Sessions 1 Manual Loads 0 Difficulty Rogue Special Mode None Game No. 92 Rogue 92 Adventurer 0 Explorer 0 Win Type - Total 0 Types 0/0/0/0/0/0/0/0/0/0 Lore% 33 Gallery% 49 Achievement% 35 Wizard Run 0 Options --------- Layout 0 ASCII 0 Keyboard 0 Movement Numpad Keybinds 0 Fullscreen 1 Font 18/SmallcapsGlow Map View 76x50 Zoom Use 0% Tactical HUD 1 Map Filters NONE Filters NONE Steam 1 RUN: a48206d2-0961-4fca-9bbf-99e37962927b